fUSD/lending_fUSD_20250618
["ID","MTS","AMOUNT","RATE_DAILY","PERIOD"]
[366477964,1750279847071,-168.0,0.00022163,2]
[366477966,1750279847081,-3484.83571773,0.00022209,2]
[366477968,1750279847091,-150.0,0.00022226,2]
[366477970,1750279847101,-658.75734465,0.00022245,6]
[366477972,1750279847110,-152.0,0.00022461,3]
[366477974,1750279847119,-187.78006525,0.00022466,2]
[366477976,1750279847129,-150.0,0.00022495,2]
[366477978,1750279847138,-34424.92332941,0.000225,2]
[366477980,1750279847147,-200.0,0.0002251,2]
[366477982,1750279847157,-1000.0,0.0002256,2]
[366477984,1750279847167,-12686.87,0.000226,2]
[366477986,1750279847176,-1000.0,0.00022621,2]
[366477988,1750279847187,-1000.0,0.00022621,2]
[366477990,1750279847196,-1000.0,0.00022621,2]
[366477992,1750279847205,-1000.0,0.00022621,2]
[366477994,1750279847216,-1000.0,0.00022621,2]
[366477996,1750279847225,-1137.79565817,0.00022621,2]
[366477998,1750279847235,-162.380719,0.00022626,2]
[366478000,1750279847244,-1076.08,0.00022653,2]
[366478002,1750279847254,-182.069976,0.00022707,7]
[366478004,1750279847264,-507.64918478,0.0002271,2]
[366478006,1750279847273,-284.787455,0.00022712,7]
[366478008,1750279847284,-201.0,0.00022721,10]
[366478010,1750279847294,-150.0,0.00022739,2]
[366478012,1750279847304,-2642.28783777,0.00022744,2]
[366478014,1750279847313,-3484.83571773,0.00022789,2]
[366478016,1750279847323,-658.75734465,0.00022831,8]
[366478018,1750279847332,-10018.58828821,0.000229,2]
[366478021,1750279847342,-1500.0,0.000229,8]
[366478023,1750279847352,-320.42819039,0.00023,7]
[366478025,1750279847361,-585.0,0.00023,7]
[366478026,1750279847370,-4000.0,0.00023,4]
[366478028,1750279847380,-194.72792766,0.00023014,2]
[366478031,1750279847390,-152.0,0.00023022,4]
[366478033,1750279847400,-300.55,0.00023069,2]
[366478035,1750279847409,-455.32,0.00023069,2]
[366478036,1750279847419,-170.87,0.00023069,2]
[366478039,1750279847428,-170.87,0.00023069,2]
[366478040,1750279847438,-455.32,0.00023069,2]
[366478043,1750279847447,-455.32,0.00023069,2]
[366478045,1750279847456,-170.87,0.00023069,2]
[366478047,1750279847466,-170.87,0.00023069,2]
[366478049,1750279847476,-271.65,0.00023069,2]
[366478050,1750279847485,-392.92,0.00023069,2]
[366478052,1750279847494,-170.87,0.00023069,2]
[366478054,1750279847505,-163.5,0.00023069,2]
[366478056,1750279847515,-170.87,0.00023069,2]
[366478058,1750279847529,-163.5,0.00023069,2]
[366478060,1750279847539,-341.74,0.00023069,2]
[366478062,1750279847548,-163.5,0.00023069,2]
[366478064,1750279847557,-150.0,0.00023071,2]
[366478066,1750279847567,-267.82,0.000231,2]
[366478068,1750279847577,-1091.46542625,0.00023168,2]
[366478070,1750279847586,-1500.0,0.00023168,2]
[366478072,1750279847596,-1500.0,0.00023168,2]
[366478074,1750279847606,-1500.0,0.00023168,2]
[366478076,1750279847617,-1500.0,0.00023168,2]
[366478078,1750279847626,-20049.44208236,0.000232,2]
[366478088,1750279847703,-709.24566767,0.000232,2]
[366478247,1750279849343,-252.47,0.000232,2]
[366478249,1750279849355,-392.04322564,0.000232,2]
[366478251,1750279849368,-881.27227305,0.000232,2]
[366478253,1750279849379,-299.04,0.000232,2]
[366478268,1750279849499,-163.5,0.00023069,2]
[366478270,1750279849511,-155.27817128,0.000232,2]
[366478471,1750279851459,-27900.68802012,0.000232,2]
[366478474,1750279851469,-115313.99020643,0.000232,7]
[366478476,1750279851481,-933.7275376,0.000232,7]
[366478482,1750279851531,-151.0,0.0002,2]
[366478484,1750279851540,-3492.77636009,0.000232,7]
[366480112,1750279943083,417.69144725,0.00024657,120]
[366480113,1750279978182,277.36,0.00013699,2]
[366480117,1750280026793,558.06352037,0.0002465,120]
[366480121,1750280210283,250.0,0.00015,2]
[366480135,1750280965018,285.13,0.00013699,2]
[366480156,1750281032351,-600.0,0.00019228,2]
[366480157,1750281032363,-42.31160606,0.00019228,2]
[366480158,1750281032373,-151.0,0.00019328,2]
[366480159,1750281032383,-168.0,0.00019328,2]
[366480160,1750281032394,-238.77,0.00019468,2]
[366480161,1750281032404,-199.91839394,0.00019473,2]
[366480162,1750281032416,-38.85160606,0.00019473,2]
[366480163,1750281032426,-238.77,0.00019478,2]
[366480164,1750281032436,-238.77,0.00019483,2]
[366480165,1750281032446,-238.77,0.00019488,2]
[366480166,1750281032455,-238.77,0.00019493,2]
[366480167,1750281032465,-106.06839394,0.00019498,2]
[366480168,1750281032496,-132.70160606,0.00019498,2]
[366480169,1750281032510,-238.77,0.00019504,2]
[366480170,1750281032520,-238.77,0.00019509,2]
[366480171,1750281032529,-238.77,0.00019514,2]
[366480172,1750281032539,-238.77,0.00019519,2]
[366480173,1750281032549,-238.77,0.00019524,2]
[366480174,1750281032559,-238.77,0.00019529,2]
[366480175,1750281032568,-238.77,0.00019534,2]
[366480176,1750281032578,-238.77,0.00019539,2]
[366480177,1750281032588,-238.77,0.00019544,2]
[366480178,1750281032597,-238.77,0.0001955,2]
[366480179,1750281032608,-238.77,0.00019555,2]
[366480180,1750281032618,-238.77,0.0001956,2]
[366480182,1750281032627,-238.77,0.00019565,2]
[366480184,1750281032637,-168.0,0.0001962,2]
[366480186,1750281032646,-833.92080167,0.00019784,2]
[366480188,1750281032655,-300.0,0.00019785,2]
[366480189,1750281032665,-275.0,0.00019798,2]
[366480190,1750281032674,-1200.0,0.00019798,2]
[366480191,1750281032684,-1000.0,0.000198,2]
[366480192,1750281032693,-1312.87944286,0.000198,2]
[366480200,1750281032790,-2543.22425714,0.000198,2]
[366480202,1750281032800,-4355.434,0.000198,2]
[366480204,1750281032810,-300.0,0.0001985,2]
[366480206,1750281032820,-156.587,0.00019876,2]
[366480208,1750281032829,-1957.856,0.0001988,2]
[366480210,1750281032838,-207.4,0.0001988,2]
[366480212,1750281032848,-151.0,0.00019888,2]
[366480214,1750281032858,-151.0,0.00019888,2]
[366480216,1750281032868,-151.0,0.00019888,2]
[366480218,1750281032877,-300.0,0.00019888,2]
[366480220,1750281032887,-151.0,0.00019888,2]
[366480222,1750281032897,-151.0,0.00019888,2]
[366480224,1750281032906,-300.0,0.00019888,2]
[366480226,1750281032916,-300.0,0.00019888,2]
[366480228,1750281032925,-151.0,0.00019888,2]
[366480230,1750281032938,-300.0,0.00019888,2]
[366480232,1750281032947,-151.0,0.00019888,2]
[366480234,1750281032956,-300.0,0.00019888,2]
[366480236,1750281032966,-151.0,0.00019888,2]
[366480238,1750281032977,-300.0,0.00019888,2]
[366480240,1750281032987,-151.0,0.00019888,2]
[366480243,1750281032997,-300.0,0.00019888,2]
[366480244,1750281033007,-500.0,0.00019888,2]
[366480246,1750281033017,-151.0,0.00019888,2]
[366480248,1750281033027,-300.0,0.00019888,2]
[366480250,1750281033038,-500.0,0.00019888,2]
[366480252,1750281033048,-151.0,0.00019888,2]
[366480254,1750281033057,-300.0,0.00019888,2]
[366480256,1750281033067,-151.0,0.00019888,2]
[366480258,1750281033077,-500.0,0.00019888,2]
[366480260,1750281033087,-300.0,0.00019888,2]
[366480262,1750281033096,-151.0,0.00019888,2]
[366480264,1750281033106,-500.0,0.00019888,2]
[366480266,1750281033116,-151.0,0.00019888,2]
[366480268,1750281033127,-200.0,0.00019888,2]
[366480302,1750281033138,-500.0,0.00019888,2]
[366480308,1750281033513,-151.0,0.00019888,2]
[366480310,1750281033525,-500.0,0.00019888,2]
[366480312,1750281033535,-151.0,0.00019888,2]
[366480314,1750281033544,-500.0,0.00019888,2]
[366480316,1750281033554,-188.0,0.00019888,2]
[366480318,1750281033564,-495.03527215,0.00019888,2]
[366480320,1750281033574,-500.0,0.00019888,2]
[366480322,1750281033584,-500.0,0.00019888,2]
[366480323,1750281033594,-500.0,0.00019888,2]
[366480324,1750281033604,-500.0,0.00019888,2]
[366480325,1750281033613,-500.0,0.00019888,2]
[366480326,1750281033623,-500.0,0.00019888,2]
[366480327,1750281033632,-500.0,0.00019888,2]
[366480328,1750281033641,-500.0,0.00019888,2]
[366480329,1750281033651,-500.0,0.00019888,2]
[366480330,1750281033661,-375.97126773,0.00019888,2]
[366480331,1750281033671,-21392.45420879,0.00019892,2]
[366480332,1750281033700,-1000.0,0.00019892,2]
[366480333,1750281033711,-20326.00469121,0.00019892,2]
[366480334,1750281033720,-168.0,0.00019897,2]
[366480335,1750281033730,-1462.60889923,0.00019935,2]
[366480336,1750281033739,-332.0,0.0002,2]
[366480337,1750281033750,-330.0,0.0002,2]
[366480338,1750281033760,-150.0,0.0002,2]
[366480339,1750281033769,-210.99,0.0002,2]
[366480340,1750281033779,-361.667,0.0002,2]
[366480341,1750281033789,-285.13,0.00020187,2]
[366480342,1750281033798,-250.0,0.00020228,2]
[366480343,1750281033808,-288.64,0.00020269,2]
[366480344,1750281033816,-829.65,0.000203,2]
[366480345,1750281033826,-162.380719,0.00020424,2]
[366480346,1750281033836,-12857.14075455,0.00020513,2]
[366480347,1750281033848,-1400.0,0.00020513,2]
[366480348,1750281033859,-600.0,0.00020513,2]
[366480359,1750281038157,-2398.39532105,0.00020513,2]
[366480362,1750281038312,-549.64081996,0.00020513,2]
[366480363,1750281038468,-320.88,0.00020513,2]
[366480364,1750281038481,-2137.6,0.00020513,2]
[366480532,1750281040327,-3636.34310444,0.00020513,2]
[366480534,1750281040336,-168.0,0.00020574,2]
[366480536,1750281040346,-289.59,0.00020672,2]
[366480538,1750281040355,-666.0,0.00020683,2]
[366480540,1750281040364,-1000.0,0.000207,2]
[366480542,1750281040374,-813.0722,0.000207,2]
[366480544,1750281040384,-201.0,0.00020786,2]
[366480546,1750281040394,-2000.0,0.000208,2]
[366480548,1750281040403,-163.2,0.00020869,2]
[366480550,1750281040413,-168.0,0.00020874,2]
[366480580,1750281040645,-706.97888264,0.000209,4]
[366480586,1750281040751,-168.3888056,0.00020972,2]
[366480588,1750281040763,-168.0,0.00021027,2]
[366480590,1750281040773,-609.12,0.00021155,2]
[366480592,1750281040783,-376.0,0.000212,2]
[366480594,1750281040793,-957.0,0.000212,2]
[366480596,1750281040803,-500.0,0.000212,2]
[366480598,1750281040813,-84.49419234,0.00021247,2]
[366480602,1750281040841,-83.50580766,0.00021247,2]
[366480604,1750281040850,-215.0738,0.00021249,2]
[366480606,1750281040860,-156.587,0.00021257,2]
[366480608,1750281040869,-6153.54,0.0002137,2]
[366480610,1750281040879,-1000.0,0.00021419,2]
[366480612,1750281040889,-706.97888244,0.00021452,5]
[366480614,1750281040898,-174.61919141,0.0002152,2]
[366480616,1750281040908,-600.0,0.0002178,4]
[366480618,1750281040917,-300.0,0.0002178,2]
[366480620,1750281040927,-150.0,0.00021918,2]
[366480622,1750281040939,-500.0,0.00021918,2]
[366480623,1750281040949,-150.0,0.00021918,2]
[366480625,1750281040959,-201.0,0.00021939,3]
[366480627,1750281040968,-119.69531848,0.00021945,2]
[366480642,1750281041055,-380.30468152,0.00021945,2]
[366480644,1750281041064,-500.0,0.00021973,2]
[366480645,1750281041073,-522.01842908,0.00022,2]
[366480646,1750281041085,-114.98157092,0.00022,2]
[366480647,1750281041094,-242.76923886,0.00022,2]
[366480648,1750281041104,-493.88004829,0.00022003,6]
[366480649,1750281041132,-213.09883415,0.00022003,6]
[366480651,1750281041141,-185.5,0.00022053,2]
[366480652,1750281041150,-181.08010149,0.00022068,2]
[366480654,1750281041160,-470.12106436,0.00022192,7]
[366480658,1750281041188,-166.87893564,0.00022192,7]
[366480660,1750281041197,-112.80706436,0.00022222,2]
[366480667,1750281041287,-813.072159,0.00022222,2]
[366480668,1750281041399,-74.12077664,0.00022222,2]
[366480669,1750281041409,-168.0,0.00022421,2]
[366480670,1750281041419,-168.0,0.00022445,2]
[366480671,1750281041429,-114.37922336,0.00022466,7]
[366480672,1750281041442,-522.62077664,0.00022466,7]
[366480673,1750281041451,-66.5442234,0.00022495,2]
[366480693,1750281044286,-83.4557766,0.00022495,2]
[366480694,1750281044296,-607.29693313,0.00022555,7]
[366480695,1750281044326,-99.68194931,0.00022555,7]
[366480696,1750281044336,-168.0,0.00022569,2]
[366480697,1750281044345,-168.0,0.00022597,2]
[366480698,1750281044355,-187.78006525,0.00022616,2]
[366480699,1750281044364,-194.59298544,0.00022618,2]
[366480700,1750281044383,-28.43854516,0.00022618,2]
[366480701,1750281044393,-162.380719,0.00022626,2]
[366480702,1750281044402,-180.112376,0.00022736,3]
[366480703,1750281044412,-131.00627984,0.0002274,7]
[366480704,1750281044476,-352.407,0.0002274,7]
[366480708,1750281046486,-358.40935926,0.0002,2]
[366480709,1750281046495,-153.58672016,0.0002274,7]
[366480710,1750281046505,-288.64,0.00022802,2]
[366480711,1750281046516,-837.84582391,0.00022909,2]
[366480712,1750281046525,-497.51809667,0.0002297,2]
[366480713,1750281046536,-3329.59810044,0.0002297,2]
[366480714,1750281046547,-7890.80864205,0.0002297,2]
[366480715,1750281046556,-173.0,0.00023,7]
[366480716,1750281046566,-637.0,0.00023014,7]
[366480717,1750281046575,-637.0,0.00023014,7]
[366480718,1750281046584,-200.0,0.00023014,2]
[366480719,1750281046593,-1000.0,0.00023025,2]
[366480720,1750281046602,-150.0,0.00023071,2]
[366480721,1750281046611,-455.2,0.0002308,2]
[366480722,1750281046621,-170.87,0.0002308,2]
[366480723,1750281046630,-201.0,0.00023092,5]
[366480724,1750281046639,-387.0,0.000231,2]
[366480725,1750281046649,-159.0,0.000231,8]
[366480726,1750281046659,-706.97888244,0.00023107,8]
[366480727,1750281046668,-398.73,0.00023128,2]
[366480728,1750281046677,-194.72792766,0.00023164,2]
[366480729,1750281046686,-330.0,0.000232,2]
[366480730,1750281046695,-566.9567,0.000232,2]
[366480731,1750281046704,-159.06097,0.000232,2]
[366480732,1750281046713,-2560.1626151,0.00023224,2]
[366480733,1750281046722,-304.8933031,0.0002324,2]
[366480734,1750281046732,-457.3399542,0.0002324,2]
[366480735,1750281046741,-19279.3268035,0.00023256,2]
[366480736,1750281046749,-16244.30557215,0.00023272,2]
[366480737,1750281046777,-1469.33592445,0.00023272,2]
[366480738,1750281046793,-641.21235277,0.00023272,2]
[366480740,1750281046804,-84403.62438333,0.00023272,2]
[366480742,1750281046813,-11917.2980309,0.00023272,2]
[366480744,1750281046822,-1000.0,0.00023287,2]
[366480746,1750281046831,-637.0,0.00023288,7]
[366480747,1750281046840,-150.22613624,0.00023288,2]
[366480748,1750281046849,-9336.59,0.00023368,2]
[366480749,1750281046858,-150.99,0.00023368,2]
[366480750,1750281046867,-315.0,0.00023368,2]
[366480751,1750281046876,-171.5288051,0.00023369,2]
[366480752,1750281046885,-200.0,0.000235,2]
[366480753,1750281046894,-10528.08607616,0.000235,30]
[366480754,1750281046903,-833.92080167,0.000235,30]
[366480755,1750281046913,-200.0,0.0002351,2]
[366480756,1750281046921,-152.0,0.0002352,3]
[366480757,1750281046931,-2000.0,0.000236,2]
[366480758,1750281046943,-150.0,0.00023648,2]
[366480759,1750281046951,-706.97888244,0.00023659,9]
[366480760,1750281046960,-201.93286099,0.00023712,2]
[366480761,1750281046970,-609.12,0.000238,2]
[366480762,1750281046979,-1000.0,0.00023828,2]
[366480763,1750281046989,-1706.48,0.00023836,2]
[366480764,1750281046997,-2511.69393907,0.000239,2]
[366480765,1750281047006,-177.15959505,0.000239,2]
[366480766,1750281047018,-162.58846639,0.00023934,2]
[366480767,1750281047027,-637.0,0.00023934,7]
[366480768,1750281047036,-231.28369723,0.00023987,2]
[366480769,1750281047046,-168.3888056,0.00023995,2]
[366480770,1750281047055,-59950.45783924,0.00024,2]
[366480771,1750281047064,-990.39512905,0.00024,2]
[366480772,1750281047074,-500.0,0.00024,2]
[366480773,1750281047084,-300.0,0.00024,2]
[366480774,1750281047095,-210.93,0.00024,30]
[366480775,1750281047104,-6453.78,0.00024,30]
[366480776,1750281047114,-3000.0,0.00024,7]
[366480777,1750281047124,-2303.97845812,0.000241,2]
[366480778,1750281047135,-641.0,0.00024164,7]
[366480779,1750281047145,-173.0,0.00024164,7]
[366480780,1750281047155,-152.0,0.0002418,4]
[366480781,1750281047165,-409.32615512,0.0002421,2]
[366480782,1750281047174,-3587.58435065,0.0002421,2]
[366480783,1750281047185,-706.97888244,0.0002421,10]
[366480784,1750281047196,-150.0,0.00024225,2]
[366480785,1750281047509,-201.0,0.00024246,7]
[366480786,1750281047522,-209.40437684,0.0002426,2]
[366480787,1750281047532,-294.75549784,0.0002428,2]
[366480788,1750281047542,-270.52199503,0.0002429,7]
[366480789,1750281047552,-5000.0,0.00024463,7]
[366480790,1750281047562,-1076.4089307,0.000245,2]
[366480791,1750281047571,-277.8925304,0.000245,2]
[366480792,1750281047581,-833.92080167,0.000245,7]
[366480793,1750281047591,-2511.69393907,0.00024556,2]
[366480794,1750281047600,-1001.10067586,0.000246,2]
[366480795,1750281047610,-21793.57,0.000246,2]
[366480796,1750281047619,-12115.32,0.0002463,2]
[366480797,1750281047629,-1000.0,0.00024632,2]
[366480798,1750281047638,-5000.0,0.00024649,5]
[366480799,1750281047648,-579.25918396,0.0002465,2]
[366480800,1750281047658,-11586.33417622,0.0002465,2]
[366480801,1750281047667,-234.069999,0.0002465,2]
[366480802,1750281047676,-1000.0,0.00024657,12]
[366480803,1750281047687,-174.0,0.00024658,2]
[366480804,1750281047696,-174.0,0.00024658,2]
[366480805,1750281047706,-192.29663845,0.00024658,2]
[366480806,1750281047715,-456.2449939,0.00024658,2]
[366480807,1750281047725,-259.73,0.00024658,4]
[366480808,1750281047734,-1000.0,0.00024658,2]
[366480809,1750281047744,-1737.18,0.00024658,7]
[366480810,1750281047754,-400.0,0.0002467,2]
[366480811,1750281047764,-400.0,0.0002467,2]
[366480812,1750281047773,-1807.47,0.00024685,30]
[366480813,1750281047783,-300.0,0.000247,9]
[366480814,1750281047792,-706.97888244,0.00024762,11]
[366480815,1750281047802,-4453.1409,0.0002479,3]
[366480816,1750281047811,-1147.9514,0.0002479,2]
[366480817,1750281047821,-775.49062498,0.000248,2]
[366480818,1750281047830,-151.0,0.000248,7]
[366480819,1750281047841,-700.0,0.000248,9]
[366480820,1750281047851,-833.92080167,0.000248,3]
[366480821,1750281047860,-84183.37613133,0.000248,3]
[366480827,1750281353242,1360.0,0.0002465,120]
[366480828,1750281356955,465.0,0.0002465,120]
[366480830,1750281412428,946.0,0.0002465,120]
[366480831,1750281414123,274.0,0.0002465,120]
[366480834,1750281473610,349.0,0.0002465,120]
[366480842,1750281892091,256.61,0.00013699,2]
[366480845,1750282116407,7948.42,0.000151,2]
[366480852,1750282169118,-231.14183147,0.00016338,2]
[366480853,1750282169140,-300.0,0.00016437,2]
[366480854,1750282169164,-2636.53227,0.00016438,2]
[366480855,1750282169187,-1711.42886853,0.00016438,2]
[366480870,1750282231525,-639.16242228,0.00016437,2]
[366480871,1750282231538,-547.25853702,0.00016437,2]
[366480872,1750282231549,-13.5790407,0.00016437,2]
[366480873,1750282231559,-925.10340147,0.00016438,2]
[366480874,1750282231568,-2636.53227,0.00016931,2]
[366480875,1750282231578,-156.79855524,0.00017095,2]
[366480876,1750282231628,-2479.73371476,0.00017095,2]
[366480877,1750282231637,-300.0,0.00017499,2]
[366480878,1750282231647,-1407.64346069,0.000175,2]
[366480879,1750282231659,-386.75710087,0.000175,2]
[366480880,1750282231670,-612.17759608,0.000175,2]
[366480881,1750282231682,-465.35712396,0.000175,2]
[366480882,1750282231693,-4996.07217067,0.000175,2]
[366480883,1750282231722,-726.89579809,0.000175,2]
[366480884,1750282231824,-37544.83120083,0.000175,2]
[366480885,1750282231834,-202.0,0.00017786,2]
[366480886,1750282231844,-568.50982536,0.000179,2]
[366480887,1750282231853,-568.50982528,0.00018555,2]
[366480888,1750282231863,-202.0,0.00019027,3]
[366480889,1750282231872,-151.0,0.00019178,2]
[366480890,1750282231882,-568.50982528,0.0001921,2]
[366480891,1750282231891,-4756.06832335,0.000194,2]
[366480893,1750282231900,-1124.01441455,0.00019462,2]
[366480895,1750282231910,-300.0,0.00019624,2]
[366480898,1750282231919,-365.47,0.00019697,2]
[366480901,1750282231928,-156.587,0.00019726,2]
[366480903,1750282231937,-280.77,0.00019765,2]
[366480905,1750282231947,-568.50982528,0.00019866,2]
[366480907,1750282231956,-2245.84573137,0.00019897,2]
[366480909,1750282231966,-289.53999998,0.000199,2]
[366480911,1750282231975,-5564.0,0.000199,5]
[366480913,1750282231984,-156.99839329,0.000199,2]
[366480915,1750282231993,-177.15959504,0.000199,2]
[366480917,1750282232003,-160.79212961,0.00019941,2]
[366480919,1750282232012,-567.54,0.00019984,2]
[366480921,1750282232021,-567.54,0.00019984,2]
[366480923,1750282232031,-567.54,0.00019984,2]
[366480926,1750282232040,-567.54,0.00019984,2]
[366480929,1750282232049,-833.92080167,0.00019985,2]
[366480931,1750282232059,-1957.856,0.00019986,2]
[366480933,1750282232069,-207.4,0.00019986,2]
[366480935,1750282232078,-150.37,0.0001999,2]
[366480937,1750282232087,-567.54,0.0001999,2]
[366480939,1750282232097,-300.0,0.00019993,2]
[366480941,1750282232106,-59101.84581955,0.00019994,2]
[366480944,1750282232117,-580.54091556,0.00019994,2]
[366480946,1750282232128,-550.0,0.00019994,2]
[366480948,1750282232139,-536.08786181,0.00019994,2]
[366480950,1750282232150,-3346.5,0.00019994,2]
[366480956,1750282232198,-1005.51368211,0.00019994,2]
[366480958,1750282232209,-78512.63928698,0.00019994,2]
[366480962,1750282232236,-1392.16083642,0.00019994,2]
[366481286,1750282237381,-2423.44712579,0.00019994,2]
[366481287,1750282237446,-92573.53939268,0.00019994,2]
[366481288,1750282237560,-1422.79594592,0.00019994,2]
[366481289,1750282237595,-17154.61551437,0.00019994,2]
[366481487,1750282239618,-818.3697875,0.00019994,2]
[366481498,1750282239708,-1854.252,0.00019994,2]
[366481500,1750282239719,-5327.3736147,0.00019994,2]
[366481813,1750282242672,-47402.95707177,0.00019994,2]
[366481815,1750282242682,-323.00469703,0.00019999,2]
[366481817,1750282242691,-205.91684196,0.00019999,2]
[366481819,1750282242701,-261.9289857,0.00019999,2]
[366481821,1750282242711,-13361.63664365,0.0002,2]
[366481823,1750282242720,-368916.00913955,0.0002,2]
[366481846,1750282242934,-93762.45712112,0.0002,2]
[366481849,1750282242949,-76411.71886825,0.0002,2]
[366481851,1750282242958,-214.1,0.0002,2]
[366481853,1750282242967,-57979.73486002,0.0002,2]
[366482118,1750282245819,-86201.63878351,0.0002,2]
[366482120,1750282245831,-19888.0511999,0.0002,2]
[366482122,1750282245850,-156489.59152597,0.0002,2]
[366482146,1750282246026,-17091.68748971,0.0002,2]
[366482596,1750282306840,194.0,0.0002465,120]
[366482597,1750282309507,498.0,0.0002465,120]
[366482599,1750282431708,629.0,0.0002465,120]
[366482600,1750282433956,1325.0,0.0002465,120]
[366482601,1750282435312,424.0,0.0002465,120]
[366482603,1750282493701,795.0,0.0002465,120]
[366482604,1750282495560,874.0,0.0002465,120]
[366482607,1750282549399,300.0,0.0002465,120]
[366482610,1750282693993,202.0,0.00015786,2]
[366482613,1750282883849,243.77,0.00013699,2]
[366482617,1750283052276,202.0,0.00016086,2]
[366482634,1750283423523,150.0,0.00018001,29]
[366482637,1750283431607,-202.0,0.00016417,2]
[366482638,1750283431617,-300.0,0.00017441,2]
[366482639,1750283431626,-202.0,0.00017779,3]
[366482640,1750283431635,-267.27718174,0.00018464,2]
[366482641,1750283431647,-32.72281826,0.00018464,2]
[366482642,1750283431656,-250.0,0.00018464,2]
[366482643,1750283431666,-300.0,0.00018669,2]
[366482644,1750283431676,-250.0,0.00018792,2]
[366482645,1750283431689,-173.18,0.00018922,2]
[366482646,1750283431698,-202.0,0.00019141,5]
[366482647,1750283431708,-151.0,0.00019178,2]
[366482648,1750283431718,-300.0,0.00019185,2]
[366482649,1750283431729,-250.0,0.00019185,2]
[366482650,1750283431738,-151.09718176,0.00019346,2]
[366482651,1750283431769,-148.90281824,0.00019346,2]
[366482652,1750283431779,-224.09522602,0.00019346,2]
[366482653,1750283431827,-975.90477398,0.00019346,2]
[366482654,1750283431837,-568.65212578,0.00019347,2]
[366482655,1750283431848,-438.56524652,0.00019347,2]
[366482656,1750283431859,-871.91188984,0.00019347,2]
[366482657,1750283431870,-3188.1155704,0.00019347,2]
[366482658,1750283431881,-849.83407237,0.00019347,2]
[366482664,1750283431943,-1045.85852157,0.00019347,2]
[366482670,1750283431995,-893.70482012,0.00019347,2]
[366483193,1750283439104,-582.81395988,0.00019347,2]
[366483194,1750283439264,-600.0,0.00019347,2]
[366483195,1750283439344,-2300.0,0.00019347,2]
[366483238,1750283439716,-9249.68861108,0.00019347,2]
[366483247,1750283439800,-1626.11604874,0.00019347,2]
[366483263,1750283439938,-1684.7391337,0.00019347,2]
[366483265,1750283439948,-960.2608663,0.00019438,2]
[366483267,1750283439961,-39.7391337,0.00019438,2]
[366483269,1750283439971,-351.34005743,0.00019462,2]
[366483271,1750283439980,-1957.856,0.00019497,2]
[366483273,1750283439989,-207.4,0.00019497,2]
[366483275,1750283439999,-2030.296672,0.00019552,2]
[366483277,1750283440009,-833.92080167,0.0001959,2]
[366483279,1750283440019,-289.333,0.00019599,2]
[366483282,1750283440028,-1135.23972577,0.000196,2]
[366483284,1750283440038,-1014.81377438,0.000196,2]
[366483286,1750283440047,-1059.76232752,0.000196,2]
[366483288,1750283440058,-1076.79566428,0.000196,2]
[366483290,1750283440067,-1084.63104381,0.000196,2]
[366483292,1750283440077,-1124.65789102,0.000196,2]
[366483294,1750283440087,-1094.93365908,0.000196,2]
[366483296,1750283440097,-1082.21488726,0.000196,2]
[366483298,1750283440107,-1035.49775167,0.000196,2]
[366483300,1750283440117,-2105.41764886,0.00019607,2]
[366483302,1750283440126,-463.81736138,0.00019662,2]